bitfinex/quotes_BTCUSD_20250904
["timestamp","ask_amount","ask_price","bid_price","bid_amount"]
[1757023174387,0.58989133,110690.0,110680.0,0.31720281]
[1757023174987,0.58789133,110690.0,110680.0,0.31720281]
[1757023177171,0.60735954,110690.0,110680.0,0.31720281]
[1757023177928,0.60935954,110690.0,110680.0,0.31720281]
[1757023179734,0.23861077,110690.0,110680.0,0.31720281]
[1757023179920,0.60935954,110690.0,110680.0,0.31720281]
[1757023180375,0.60935954,110690.0,110680.0,0.31397281]
[1757023180796,0.60935954,110690.0,110680.0,0.31699281]
[1757023181449,0.60935954,110690.0,110680.0,0.31184281]
[1757023181674,0.61244954,110690.0,110680.0,0.31184281]
[1757023182107,0.61244954,110690.0,110680.0,0.31382281]
[1757023185154,0.61244954,110690.0,110680.0,0.16250281]
[1757023185370,0.61244954,110690.0,110680.0,0.31390281]
[1757023187562,0.60935954,110690.0,110680.0,0.31390281]
[1757023187918,0.23861077,110690.0,110680.0,0.31390281]
[1757023188937,0.61244954,110690.0,110680.0,0.31390281]
[1757023189580,0.61244954,110690.0,110680.0,0.31382281]
[1757023190558,0.62091563,110690.0,110680.0,0.31382281]
[1757023192009,0.61782563,110690.0,110680.0,0.31382281]
[1757023192215,0.64217147,110690.0,110680.0,0.31684281]
[1757023193140,0.64526147,110690.0,110680.0,0.31382281]
[1757023193388,0.64526147,110690.0,110680.0,0.31184281]
[1757023193593,0.2745127,110690.0,110680.0,0.31382281]
[1757023193822,0.64217147,110690.0,110680.0,0.31684281]
[1757023194239,0.64217147,110690.0,110680.0,0.31382281]
[1757023194706,0.64526147,110690.0,110680.0,0.31184281]
[1757023195277,0.64526147,110690.0,110680.0,0.31382281]
[1757023195838,0.64527638,110690.0,110680.0,0.31382281]
[1757023197503,0.64218638,110690.0,110680.0,0.31382281]
[1757023197729,0.64218638,110690.0,110680.0,0.31684281]
[1757023198289,0.61784054,110690.0,110680.0,0.31684281]
[1757023198858,0.61784054,110690.0,110680.0,0.31382281]
[1757023199243,0.64218638,110690.0,110680.0,0.31382281]
[1757023199456,0.61784054,110690.0,110680.0,0.31382281]
[1757023199674,0.6178415,110690.0,110680.0,0.31382281]
[1757023200346,0.6209315,110690.0,110680.0,0.31184281]
[1757023200560,0.6178415,110690.0,110680.0,0.31382281]
[1757023200841,0.6178415,110690.0,110680.0,0.34622393]
[1757023201051,0.24709273,110690.0,110680.0,0.49758393]
[1757023201261,0.6178415,110690.0,110680.0,0.49758393]
[1757023201495,0.6178415,110690.0,110680.0,0.49456393]
[1757023201708,0.6178415,110690.0,110680.0,0.31688281]
[1757023201709,0.24709273,110690.0,110680.0,0.31688281]
[1757023201928,0.6178415,110690.0,110680.0,0.31688281]
[1757023202108,0.6178415,110690.0,110680.0,0.49758393]
[1757023202933,0.61784269,110690.0,110680.0,0.49758393]
[1757023203349,0.60935954,110690.0,110680.0,0.49758393]
[1757023203490,0.23861077,110690.0,110680.0,0.49758393]
[1757023203702,0.60935954,110690.0,110680.0,0.49758393]
[1757023204105,0.23661077,110690.0,110680.0,0.49758393]
[1757023204309,0.04663084,110690.0,110680.0,0.8683327]
[1757023204590,0.04663084,110690.0,110680.0,0.8931327]
[1757023204997,0.04663084,110690.0,110680.0,0.52238393]
[1757023205186,0.04663084,110690.0,110680.0,0.8931327]
[1757023206235,0.02716263,110690.0,110680.0,0.8931327]
[1757023207527,0.02716263,110690.0,110680.0,0.52238393]
[1757023207759,0.02716263,110690.0,110680.0,0.8931327]
[1757023207975,0.1822107,110700.0,110690.0,0.18068479]
[1757023208193,0.20020175,110700.0,110690.0,0.27762078]
[1757023208444,0.22736104,110700.0,110690.0,0.42922078]
[1757023209103,0.04669257,110700.0,110690.0,0.42922078]
[1757023209323,0.0482348,110700.0,110690.0,0.42922078]
[1757023210168,0.22890327,110700.0,110690.0,0.42922078]
[1757023210397,0.23653914,110700.0,110690.0,0.42926078]
[1757023210604,0.23653914,110700.0,110690.0,0.09693599]
[1757023211040,0.61245791,110700.0,110690.0,0.24359599]
[1757023211256,0.61245791,110700.0,110690.0,0.09191599]
[1757023211468,0.24170914,110700.0,110690.0,0.24363599]
[1757023211888,0.61245791,110700.0,110690.0,0.24363599]
[1757023212342,0.61245791,110700.0,110690.0,0.09191599]
[1757023212556,0.61245791,110700.0,110690.0,0.24363599]
[1757023213632,0.24170914,110700.0,110690.0,0.24363599]
[1757023216491,0.61245791,110700.0,110690.0,0.24363599]
[1757023216928,0.23870914,110700.0,110690.0,0.09389599]
[1757023217141,0.61245791,110700.0,110690.0,0.24561599]
[1757023217466,0.61245791,110700.0,110690.0,0.24367599]
[1757023221660,0.98347004,110700.0,110690.0,0.24367599]
[1757023222489,0.98347004,110700.0,110690.0,0.24371599]
[1757023222715,0.61258959,110700.0,110690.0,0.09191599]
[1757023223336,0.26605498,110700.0,110690.0,0.09191599]
[1757023223548,0.63693543,110700.0,110690.0,0.09191599]
[1757023224806,1.09973187,110700.0,110690.0,0.09191599]
[1757023225154,1.26004831,110700.0,110690.0,0.09191599]
[1757023226023,1.26004841,110700.0,110690.0,0.09191599]
[1757023226424,1.10820841,110700.0,110690.0,0.09191599]
[1757023228101,1.09973187,110700.0,110690.0,0.09191599]
[1757023228325,1.10820862,110700.0,110690.0,0.09191599]
[1757023229191,1.10820862,110700.0,110680.0,4.682e-05]
[1757023229192,0.18068479,110690.0,110680.0,4.682e-05]
[1757023229409,0.18068479,110690.0,110680.0,0.15196682]
[1757023229410,0.69583562,110690.0,110680.0,0.15196682]
[1757023229617,0.70100562,110690.0,110680.0,0.15196682]
[1757023229859,1.09905331,110690.0,110680.0,4.682e-05]
[1757023230554,1.09905331,110690.0,110680.0,0.00104682]
[1757023230765,0.35729241,110690.0,110680.0,0.00204682]
[1757023230985,0.72817286,110690.0,110680.0,0.00204682]
[1757023231690,0.71969759,110690.0,110680.0,0.00204682]
[1757023236227,0.69535175,110690.0,110680.0,0.00204682]
[1757023237081,0.3244713,110690.0,110680.0,0.00204682]
[1757023237289,0.69535175,110690.0,110680.0,0.00204682]
[1757023241750,1.0662322,110690.0,110680.0,0.00204682]
[1757023242721,0.34881714,110690.0,110680.0,0.00204682]
[1757023242904,0.71969759,110690.0,110680.0,0.00204682]
[1757023243125,0.69535175,110690.0,110680.0,0.00204682]
[1757023243719,1.0662322,110690.0,110680.0,0.00204682]
[1757023244378,1.09057804,110690.0,110680.0,0.00204682]
[1757023246120,1.24257804,110690.0,110680.0,0.00204682]
[1757023247597,1.09057804,110690.0,110680.0,0.00204682]
[1757023248359,0.34881714,110690.0,110680.0,0.00204682]
[1757023248559,1.09057804,110690.0,110680.0,0.00204682]
[1757023251390,1.09904967,110690.0,110680.0,0.00204682]
[1757023251874,0.35728877,110690.0,110680.0,0.00204682]
[1757023252091,0.72816922,110690.0,110680.0,0.00204682]
[1757023252324,0.26237278,110690.0,110680.0,0.00409682]
[1757023252540,0.26020278,110690.0,110680.0,0.46997326]
[1757023252974,0.26020278,110690.0,110680.0,0.09909281]
[1757023254720,0.26020278,110690.0,110680.0,0.46997326]
[1757023255341,0.26020278,110690.0,110680.0,0.65067438]
[1757023255546,0.04670052,110690.0,110680.0,0.65067438]
[1757023255721,0.22892754,110690.0,110680.0,0.27979393]
[1757023255921,0.22738531,110690.0,110680.0,0.65067438]
[1757023256566,0.04670052,110690.0,110680.0,0.65067438]
[1757023256942,0.04824275,110690.0,110680.0,0.65067438]
[1757023257156,0.04670052,110690.0,110680.0,0.65067438]
[1757023259244,0.07104636,110690.0,110680.0,0.27979393]
[1757023259457,0.25173115,110690.0,110680.0,0.65067438]
[1757023259647,0.25173115,110690.0,110680.0,0.80255438]
[1757023259891,0.25173115,110690.0,110680.0,0.43171393]
[1757023260329,0.25173115,110690.0,110680.0,0.80259438]
[1757023260744,0.22738531,110690.0,110680.0,0.80259438]
[1757023263073,0.04670052,110690.0,110680.0,0.80259438]
[1757023263310,0.22738531,110690.0,110680.0,0.80259438]
[1757023264397,0.22738531,110690.0,110680.0,0.43171393]
[1757023267619,0.22738531,110690.0,110680.0,0.49831393]
[1757023270536,0.22738531,110690.0,110680.0,0.34639393]
[1757023270748,0.22738531,110690.0,110680.0,0.49827393]
[1757023273498,0.59826576,110690.0,110680.0,0.49827393]
[1757023274759,0.41758097,110690.0,110680.0,0.49827393]
[1757023274974,0.59826576,110690.0,110680.0,0.49827393]
[1757023276373,0.04670052,110690.0,110680.0,0.49827393]
[1757023276588,0.41758097,110690.0,110680.0,0.49827393]
[1757023276949,0.59826576,110690.0,110680.0,0.49827393]
[1757023280893,0.41758097,110690.0,110680.0,0.49827393]
[1757023281555,0.04670052,110690.0,110680.0,0.49827393]
[1757023281767,0.04824275,110690.0,110680.0,0.49827393]
[1757023282411,0.07258859,110690.0,110680.0,0.49827393]
[1757023285846,0.07258859,110690.0,110680.0,0.86915542]
[1757023285847,0.07104636,110690.0,110680.0,0.86915542]
[1757023286067,0.01953328,110690.0,110680.0,0.86915542]
[1757023286276,0.04669387,110690.0,110680.0,0.49827393]
[1757023286478,0.01953328,110690.0,110680.0,0.49827393]
[1757023287536,0.01953328,110690.0,110680.0,0.49327393]
[1757023287745,0.01953328,110690.0,110680.0,0.49541393]
[1757023288167,0.01953328,110690.0,110680.0,0.86629542]
[1757023288697,0.01953328,110690.0,110680.0,0.49541393]
[1757023289128,0.01953328,110690.0,110680.0,0.73855542]
[1757023289346,0.01953328,110690.0,110680.0,0.91109424]
[1757023289774,0.01953328,110690.0,110680.0,0.54021275]
[1757023289989,0.01953328,110690.0,110680.0,0.93825221]
[1757023290493,0.01953328,110690.0,110680.0,0.9472346]
[1757023292439,0.09323748,110710.0,110700.0,0.18066847]
[1757023292650,0.12421553,110710.0,110700.0,0.49086446]
[1757023292837,0.12626553,110710.0,110700.0,0.49086446]
[1757023293287,0.12626553,110710.0,110700.0,0.49300446]
[1757023293718,0.12726553,110710.0,110700.0,0.49300446]
[1757023293936,0.12926473,110710.0,110700.0,0.49300446]
[1757023295220,0.12004293,110710.0,110700.0,0.49300446]
[1757023296730,0.11707293,110710.0,110700.0,0.49300446]
[1757023296917,0.11502293,110710.0,110700.0,0.49300446]
[1757023297221,0.12938166,110710.0,110700.0,0.49300446]
[1757023299013,0.12010293,110710.0,110700.0,0.49300446]
[1757023299850,0.12907801,110710.0,110700.0,0.49300446]
[1757023304166,0.13062024,110710.0,110700.0,0.49300446]
[1757023304378,0.13061732,110710.0,110700.0,0.49300446]
[1757023305750,0.12164224,110710.0,110700.0,0.49300446]
[1757023305966,0.12010001,110710.0,110700.0,0.49300446]
[1757023307447,0.11697001,110710.0,110700.0,0.49300446]
[1757023307638,0.11502001,110710.0,110700.0,0.49300446]
[1757023307831,0.11402001,110710.0,110700.0,0.49300446]
[1757023308215,0.05435017,110710.0,110700.0,0.86711595]
[1757023308451,0.05435017,110710.0,110700.0,0.49623446]
[1757023309082,0.05235017,110710.0,110700.0,0.49400446]
[1757023309282,0.05235017,110710.0,110700.0,0.49500446]
[1757023309950,0.05235017,110710.0,110700.0,0.49823446]
[1757023310911,0.05235017,110710.0,110700.0,0.86911595]
[1757023311750,0.05235017,110710.0,110700.0,0.49823446]
[1757023313781,0.05235017,110710.0,110700.0,0.53898654]
[1757023315168,0.00847348,110710.0,110700.0,0.53898654]
[1757023315353,0.05241387,110710.0,110700.0,0.53535654]
[1757023315574,0.05241387,110710.0,110700.0,0.38407654]
[1757023315782,0.05241387,110710.0,110700.0,0.54541191]
[1757023316014,0.05241387,110710.0,110700.0,0.53535654]
[1757023316871,0.05241387,110710.0,110700.0,0.38407654]
[1757023317354,0.23814602,110710.0,110700.0,0.49242446]
[1757023317582,0.60902751,110710.0,110700.0,0.16051599]
[1757023317814,0.60902751,110710.0,110700.0,0.49246446]
[1757023318033,0.60902751,110710.0,110700.0,0.31179599]
[1757023318526,0.63618453,110710.0,110700.0,0.31179599]
[1757023318946,0.63618453,110710.0,110700.0,0.49246446]
[1757023320419,0.08152089,110710.0,110700.0,0.49447446]
[1757023320639,0.07957089,110710.0,110700.0,0.49447446]
[1757023320855,0.07957089,110710.0,110700.0,0.86858595]
[1757023321067,0.05241387,110710.0,110700.0,0.86858595]
[1757023321707,0.07957058,110710.0,110700.0,0.49770446]
[1757023321926,0.07957058,110710.0,110700.0,0.49447446]
[1757023322139,0.08152058,110710.0,110700.0,0.49447446]
[1757023322845,0.45240207,110710.0,110700.0,0.49447446]
[1757023325287,0.07957058,110710.0,110700.0,0.49447446]
[1757023325514,0.07957058,110710.0,110700.0,0.49770446]
[1757023326152,0.07957058,110710.0,110700.0,0.49447446]
[1757023327588,0.08488058,110710.0,110700.0,0.49447446]
[1757023328226,0.45576207,110710.0,110700.0,0.49246446]
[1757023328440,0.45576207,110710.0,110700.0,0.34118446]
[1757023328658,0.6689261,110710.0,110700.0,0.49278446]
[1757023330086,0.29804461,110710.0,110700.0,0.49278446]
[1757023330529,0.6689261,110710.0,110700.0,0.49278446]
[1757023332235,0.66893275,110710.0,110700.0,0.49278446]
[1757023334928,0.66893275,110710.0,110700.0,0.31211599]
[1757023335136,0.66893275,110710.0,110700.0,0.31223599]
[1757023335353,0.66893275,110710.0,110700.0,0.16051599]
[1757023335584,0.66893275,110710.0,110700.0,0.31223599]
[1757023335802,0.66893385,110710.0,110700.0,0.31223599]
[1757023337645,0.29805236,110710.0,110700.0,0.31223599]
[1757023337859,0.66893385,110710.0,110700.0,0.31223599]
[1757023338515,0.66893385,110710.0,110700.0,0.16051599]
[1757023338729,0.66893385,110710.0,110700.0,0.31223599]
[1757023339166,0.29805236,110710.0,110700.0,0.31223599]
[1757023339384,0.29805326,110710.0,110700.0,0.49290446]
[1757023339573,0.29805326,110710.0,110700.0,0.49497446]
[1757023339839,0.66893475,110710.0,110700.0,0.49497446]
[1757023340803,0.29805326,110710.0,110700.0,0.49497446]
[1757023341010,0.66893475,110710.0,110700.0,0.49497446]
[1757023341547,0.48819017,110710.0,110700.0,0.49497446]
[1757023341766,0.11209111,110710.0,110700.0,0.86877352]
[1757023341992,0.05242252,110710.0,110700.0,0.95399719]
[1757023342421,0.04394039,110710.0,110700.0,0.95399719]
[1757023344415,0.43045474,110720.0,110710.0,0.18065215]
[1757023344620,0.45847094,110720.0,110710.0,0.27256814]
[1757023344833,0.45847094,110720.0,110710.0,0.27463814]
[1757023345451,0.45947094,110720.0,110710.0,0.27463814]
[1757023346105,0.08868188,110720.0,110710.0,0.27463814]
[1757023346310,0.45947058,110720.0,110710.0,0.27463814]
[1757023346768,0.45847058,110720.0,110710.0,0.27463814]
[1757023347875,0.27042735,110720.0,110710.0,0.27463814]
[1757023348120,0.64441641,110720.0,110710.0,0.27256814]
[1757023348643,1.01620547,110720.0,110710.0,0.24383599]
[1757023348860,0.27462735,110720.0,110710.0,0.24383599]
[1757023349074,1.01520547,110720.0,110710.0,0.24383599]
[1757023349285,1.01620547,110720.0,110710.0,0.24383599]
[1757023349495,1.01620547,110720.0,110710.0,0.42655814]
[1757023349722,1.01620547,110720.0,110710.0,0.27463814]
[1757023349933,1.01620547,110720.0,110710.0,0.24383599]
[1757023350984,1.01620547,110720.0,110710.0,0.09191599]
[1757023351189,1.01620547,110720.0,110710.0,0.24383599]
[1757023352507,1.01620547,110720.0,110710.0,0.24379599]
[1757023353236,1.0162043,110720.0,110710.0,0.24379599]
[1757023354103,0.27462618,110720.0,110710.0,0.42444814]
[1757023354289,1.0108943,110720.0,110710.0,0.42651814]
[1757023354495,1.0162043,110720.0,110710.0,0.42444814]
[1757023355345,1.0162043,110720.0,110710.0,0.24379599]
[1757023356530,0.26931618,110720.0,110710.0,0.42643814]
[1757023356748,0.64010524,110720.0,110710.0,0.42643814]
[1757023356969,0.45946941,110720.0,110710.0,0.42643814]
[1757023357180,0.64010524,110720.0,110710.0,0.42643814]
[1757023358879,0.64010065,110720.0,110710.0,0.42643814]
[1757023359135,1.01612971,110720.0,110710.0,0.09191599]
[1757023359564,1.01612971,110720.0,110710.0,0.24395599]
[1757023361155,1.01612971,110720.0,110710.0,0.42460814]
[1757023361484,1.01612971,110720.0,110710.0,0.09191599]
[1757023361716,1.01612971,110720.0,110710.0,0.24395599]
[1757023361892,1.01612971,110720.0,110710.0,0.42460814]
[1757023364900,1.01612971,110720.0,110710.0,0.24395599]
[1757023365363,1.01612971,110720.0,110710.0,0.42460814]
[1757023365696,1.01612971,110720.0,110710.0,0.09191599]
[1757023365916,1.01612971,110720.0,110710.0,0.24387599]
[1757023366126,1.01612971,110720.0,110710.0,0.24383599]
[1757023367801,1.01612971,110720.0,110710.0,0.42448814]
[1757023368505,1.06486977,110720.0,110710.0,0.42448814]
[1757023370887,1.06486977,110720.0,110710.0,0.24383599]
[1757023372183,1.15678576,110720.0,110710.0,0.24371599]
[1757023373612,1.15678576,110720.0,110700.0,0.0666]
[1757023373613,0.52065215,110710.0,110700.0,0.0666]
[1757023373788,0.53230009,110710.0,110700.0,0.31051599]
[1757023373996,0.24125428,110710.0,110700.0,0.49317446]
[1757023374193,0.27365305,110710.0,110700.0,0.31051599]
[1757023374408,0.1142574,110710.0,110700.0,0.49317446]
[1757023374614,0.67041084,110710.0,110700.0,0.31051599]
[1757023374817,0.67041084,110710.0,110700.0,0.31350599]
[1757023374818,0.29807955,110710.0,110700.0,0.31350599]
[1757023375059,0.66886861,110710.0,110700.0,0.31151599]
[1757023375261,1.03965767,110710.0,110700.0,0.15951599]
[1757023375427,0.1121874,110710.0,110700.0,0.49465446]
[1757023375645,0.10370946,110710.0,110700.0,0.31719599]
[1757023375850,0.07637184,110710.0,110700.0,0.49465446]
[1757023376022,0.4419209,110710.0,110700.0,0.49786446]
[1757023376227,0.62781305,110710.0,110700.0,0.15951599]
[1757023376441,0.07113184,110710.0,110700.0,0.49501446]
[1757023376637,0.4419209,110710.0,110700.0,0.49501446]
[1757023376843,0.62781305,110710.0,110700.0,0.49302446]
[1757023377397,0.4471609,110710.0,110700.0,0.49501446]
[1757023377601,0.4419209,110710.0,110700.0,0.49501446]
[1757023378029,0.62781305,110710.0,110700.0,0.15951599]
[1757023378271,0.62781305,110710.0,110700.0,0.31247599]
[1757023378490,0.62781305,110710.0,110700.0,0.15951599]
[1757023378705,0.66039067,110710.0,110700.0,0.31243599]
[1757023378918,0.28960161,110710.0,110700.0,0.49310446]
[1757023379130,0.66039067,110710.0,110700.0,0.49310446]
[1757023379568,0.66039067,110710.0,110700.0,0.31243599]
[1757023379897,0.28960161,110710.0,110700.0,0.49310446]
[1757023380112,0.65722067,110710.0,110700.0,0.49509446]
[1757023380331,0.66039067,110710.0,110700.0,0.49310446]
[1757023380754,0.10370946,110710.0,110700.0,0.49509446]
[1757023380976,0.6619329,110710.0,110700.0,0.49509446]
[1757023381195,0.66039067,110710.0,110700.0,0.49310446]
[1757023381606,0.10577946,110710.0,110700.0,0.49509446]
[1757023381814,0.10370946,110710.0,110700.0,0.49830446]
[1757023382023,0.4419209,110710.0,110700.0,0.49509446]
[1757023382228,0.4439909,110710.0,110700.0,0.49509446]
[1757023383618,0.07113184,110710.0,110700.0,0.50514983]
[1757023383824,0.4419209,110710.0,110700.0,0.49509446]
[1757023384048,0.07113184,110710.0,110700.0,0.49830446]
[1757023384266,0.4419209,110710.0,110700.0,0.49830446]
[1757023384909,0.44190566,110710.0,110700.0,0.49830446]
[1757023386486,0.38888991,110710.0,110700.0,0.49830446]
[1757023386957,0.0711166,110710.0,110700.0,0.49830446]
[1757023387183,0.04395783,110710.0,110700.0,0.81607777]
[1757023387431,0.04395783,110710.0,110700.0,0.85582051]
[1757023387656,0.04395783,110710.0,110700.0,0.5380472]
[1757023387893,0.04395783,110710.0,110700.0,0.85582051]
[1757023388110,0.04395783,110710.0,110700.0,0.5380472]
[1757023389494,0.36674114,110710.0,110700.0,0.34217446]
[1757023389702,0.36674114,110710.0,110700.0,0.34018446]
[1757023390124,0.36674114,110710.0,110700.0,0.49346446]
[1757023390337,0.25677622,110710.0,110700.0,0.49346446]
[1757023390568,0.57454953,110710.0,110700.0,0.49346446]
[1757023391722,0.07612407,110710.0,110700.0,0.49346446]
[1757023391933,0.39543961,110710.0,110700.0,0.49560446]
[1757023392161,0.39389738,110710.0,110700.0,0.49346446]
[1757023392370,0.57454953,110710.0,110700.0,0.49346446]
[1757023392823,0.39389738,110710.0,110700.0,0.49346446]
[1757023393097,0.57454953,110710.0,110700.0,0.49346446]
[1757023393771,0.57454953,110710.0,110700.0,0.15951599]
[1757023393988,0.89232284,110710.0,110700.0,0.49370446]
[1757023394207,0.57454953,110710.0,110700.0,0.49370446]
[1757023394962,0.39389738,110710.0,110700.0,0.49584446]
[1757023395805,0.57454953,110710.0,110700.0,0.49370446]
[1757023397299,0.07612407,110710.0,110700.0,0.49370446]
[1757023397507,0.38888738,110710.0,110700.0,0.49903446]
[1757023397745,0.39389738,110710.0,110700.0,0.49370446]
[1757023397987,0.39389738,110710.0,110700.0,0.49386446]
[1757023398479,0.07612407,110710.0,110700.0,0.49600446]
[1757023398691,0.39389738,110710.0,110700.0,0.49600446]
[1757023400030,0.57454953,110710.0,110700.0,0.34018446]
[1757023400272,0.57454953,110710.0,110700.0,0.49390446]
[1757023400755,0.25677622,110710.0,110700.0,0.49390446]
[1757023400988,0.57454953,110710.0,110700.0,0.49390446]
[1757023401488,0.89232284,110710.0,110700.0,0.15951599]
[1757023401695,0.92490046,110710.0,110700.0,0.31323599]
[1757023402107,0.92490046,110710.0,110700.0,0.15951599]
[1757023402322,0.92490046,110710.0,110700.0,0.31319599]
[1757023402752,0.92490046,110710.0,110700.0,0.15951599]
[1757023402969,0.92490046,110710.0,110700.0,0.31327599]
[1757023403195,0.60712715,110710.0,110700.0,0.31327599]
[1757023403662,0.60720575,110710.0,110700.0,0.31327599]
[1757023404069,0.28935384,110710.0,110700.0,0.49394446]
[1757023404271,0.10369169,110710.0,110700.0,0.49927446]
[1757023405305,0.10369169,110710.0,110700.0,0.49608446]
[1757023405442,0.60720575,110710.0,110700.0,0.34018446]
[1757023405656,0.60720575,110710.0,110700.0,0.49398446]
[1757023406315,0.60720575,110710.0,110700.0,0.31331599]
[1757023406747,0.60720575,110710.0,110700.0,0.49398446]
[1757023407401,0.58004951,110710.0,110700.0,0.31331599]
[1757023408235,0.58004951,110710.0,110700.0,0.31327599]
[1757023408438,0.60720836,110710.0,110700.0,0.31327599]
[1757023408826,0.60720836,110710.0,110700.0,0.15951599]
[1757023409044,0.69086682,110710.0,110700.0,0.31331599]
[1757023409250,0.60720836,110710.0,110700.0,0.49612446]
[1757023409466,0.28434645,110710.0,110700.0,0.49612446]
[1757023409694,0.60720836,110710.0,110700.0,0.31331599]
[1757023410111,0.60720836,110710.0,110700.0,0.49398446]
[1757023411257,0.28935645,110710.0,110700.0,0.49612446]
[1757023411474,0.42154621,110710.0,110700.0,0.49612446]
[1757023411803,0.60417836,110710.0,110700.0,0.49612446]
[1757023412013,0.60720836,110710.0,110700.0,0.49398446]
[1757023412623,0.60720836,110710.0,110700.0,0.49612446]
[1757023412825,0.42154621,110710.0,110700.0,0.49931446]
[1757023413000,0.42154621,110710.0,110700.0,0.49612446]
[1757023413205,0.42352621,110710.0,110700.0,0.49612446]
[1757023413993,0.60720836,110710.0,110700.0,0.34018446]
[1757023414203,0.60720836,110710.0,110700.0,0.31323599]
[1757023414548,0.60720836,110710.0,110700.0,0.49390446]
[1757023416592,0.55020972,110710.0,110700.0,0.49390446]
[1757023417143,0.23235781,110710.0,110700.0,0.49589446]
[1757023417379,0.54519972,110710.0,110700.0,0.49589446]
[1757023417686,0.55024972,110710.0,110700.0,0.49390446]
[1757023417913,0.55024972,110710.0,110700.0,0.31315599]
[1757023418438,0.55024972,110710.0,110700.0,0.49382446]
[1757023418570,0.36454757,110710.0,110700.0,0.49581446]
[1757023419019,0.3645373,110710.0,110700.0,0.49581446]
[1757023419251,0.3664973,110710.0,110700.0,0.49581446]
[1757023419722,0.3695873,110710.0,110700.0,0.49581446]
[1757023419929,0.55023945,110710.0,110700.0,0.49581446]
[1757023420498,0.3695873,110710.0,110700.0,0.49581446]
[1757023420948,0.3645373,110710.0,110700.0,0.49581446]
[1757023422559,0.04668539,110710.0,110700.0,0.49581446]
[1757023422735,0.3664973,110710.0,110700.0,0.49581446]
[1757023422958,0.04668539,110710.0,110700.0,0.49885446]
[1757023423172,0.57727679,110730.0,110710.0,0.18063843]
[1757023423386,0.27351601,110730.0,110720.0,0.24547599]
[1757023423582,0.27547601,110730.0,110720.0,0.24547599]
[1757023423806,0.08582203,110730.0,110720.0,0.42611182]
[1757023424011,0.06141386,110730.0,110720.0,0.42611182]
[1757023424222,0.24203338,110730.0,110720.0,0.42611182]
[1757023424428,0.24503338,110730.0,110720.0,0.42611182]
[1757023424626,0.56296991,110730.0,110720.0,0.42611182]
[1757023424830,0.56196991,110730.0,110720.0,0.42611182]
[1757023425085,0.56196991,110730.0,110720.0,0.24547599]
[1757023425306,0.56296991,110730.0,110720.0,0.24547599]
[1757023425521,0.02319856,110730.0,110720.0,0.43114182]
[1757023425698,0.32007876,110730.0,110720.0,0.42810182]
[1757023425952,0.5206164,110730.0,110720.0,0.27255182]
[1757023426164,0.83416178,110730.0,110720.0,0.09191599]
[1757023426391,0.85165536,110730.0,110720.0,0.24563599]
[1757023426595,0.85265536,110730.0,110720.0,0.24563599]
[1757023426770,0.53480345,110730.0,110720.0,0.09191599]
[1757023426988,0.53380345,110730.0,110720.0,0.24563599]
[1757023427187,0.53280345,110730.0,110720.0,0.24563599]
[1757023427397,0.53280345,110730.0,110720.0,0.09191599]
[1757023427601,0.53280345,110730.0,110720.0,0.24559599]
[1757023427977,0.87780986,110730.0,110720.0,0.09191599]
[1757023428164,0.87780986,110730.0,110720.0,0.24559599]
[1757023428369,0.87780986,110730.0,110720.0,0.24555599]
[1757023430567,0.87780986,110730.0,110720.0,0.24465745]
[1757023431398,0.87780986,110730.0,110720.0,0.31121745]
[1757023432361,0.87780986,110730.0,110720.0,0.15757745]
[1757023432554,0.87780986,110730.0,110720.0,0.31113745]
[1757023432928,0.87780986,110730.0,110720.0,0.15757745]
[1757023433136,0.87780986,110730.0,110720.0,0.31109745]
[1757023435322,0.87780986,110730.0,110720.0,0.15757745]
[1757023435480,0.87780986,110730.0,110720.0,0.31109745]
[1757023436320,0.54580413,110730.0,110720.0,0.31308745]
[1757023436554,0.54580413,110730.0,110720.0,0.49372328]
[1757023437168,0.54776413,110730.0,110720.0,0.49372328]
[1757023437378,0.55085413,110730.0,110720.0,0.49372328]
[1757023438815,0.54776413,110730.0,110720.0,0.49372328]
[1757023439033,0.55085413,110730.0,110720.0,0.49360328]
[1757023439440,0.54776413,110730.0,110720.0,0.49360328]
[1757023439906,0.55085413,110730.0,110720.0,0.49360328]
[1757023442330,0.55085413,110730.0,110720.0,0.31093745]
[1757023443030,0.55085413,110730.0,110720.0,0.15757745]
[1757023443255,0.55085413,110730.0,110720.0,0.31089745]
[1757023445180,0.23300222,110730.0,110720.0,0.31089745]
[1757023445400,0.55085413,110730.0,110720.0,0.31089745]
[1757023447351,0.55085413,110730.0,110720.0,0.49366328]
[1757023447556,0.55085413,110730.0,110720.0,0.34034328]
[1757023447762,0.55085413,110730.0,110720.0,0.49362328]
[1757023447763,0.54776413,110730.0,110720.0,0.49362328]
[1757023448549,0.55080413,110730.0,110720.0,0.49362328]
[1757023449088,0.55080413,110730.0,110720.0,0.15757745]
[1757023449347,0.55080413,110730.0,110720.0,0.31085745]
[1757023449526,0.55080413,110730.0,110720.0,0.31081745]
[1757023451023,0.55083216,110730.0,110720.0,0.31081745]
[1757023451226,0.57523418,110730.0,110720.0,0.31081745]
[1757023451420,0.55083216,110730.0,110720.0,0.31081745]
[1757023451621,0.57523418,110730.0,110720.0,0.31081745]
[1757023456085,0.57523418,110730.0,110720.0,0.31294745]
[1757023456291,0.07372275,110730.0,110720.0,0.49358328]
[1757023456498,0.57023418,110730.0,110720.0,0.49358328]
[1757023456704,0.54583216,110730.0,110720.0,0.49358328]
[1757023456909,0.54797216,110730.0,110720.0,0.49358328]
[1757023457140,0.54583216,110730.0,110720.0,0.49358328]
[1757023459344,0.04736073,110730.0,110720.0,0.49358328]
[1757023459528,0.02174846,110730.0,110720.0,0.49358328]
[1757023459753,0.33960037,110730.0,110720.0,0.49358328]
[1757023459953,0.33805814,110730.0,110720.0,0.49358328]
[1757023461557,0.33805814,110730.0,110720.0,0.49664328]
[1757023461879,0.33805814,110730.0,110720.0,0.49358328]
[1757023464107,0.02020623,110730.0,110720.0,0.49664328]
[1757023464310,0.00068462,110730.0,110720.0,0.34340328]
[1757023464529,0.00068462,110730.0,110720.0,0.49624328]
[1757023464969,0.00068462,110730.0,110720.0,0.34340328]
[1757023465182,0.00068462,110730.0,110720.0,0.49620328]
[1757023465646,0.31833318,110730.0,110720.0,0.49620328]
[1757023468042,0.34548354,110730.0,110720.0,0.49620328]
[1757023468260,0.34548354,110730.0,110720.0,0.49628328]
[1757023471358,0.02783498,110730.0,110720.0,0.49628328]
[1757023471783,0.34548354,110730.0,110720.0,0.49628328]
[1757023473727,0.34548354,110730.0,110720.0,0.34034328]
[1757023473946,0.02783498,110730.0,110720.0,0.49310328]
[1757023474161,0.34548354,110730.0,110720.0,0.49310328]
[1757023474554,0.02783498,110730.0,110720.0,0.49310328]
[1757023474705,0.34548354,110730.0,110720.0,0.49310328]
[1757023475460,0.02783498,110730.0,110720.0,0.49310328]
[1757023475676,0.34548354,110730.0,110720.0,0.49616328]
[1757023475883,0.02783498,110730.0,110720.0,0.50621865]
[1757023476098,0.02783498,110730.0,110720.0,0.49616328]
[1757023477829,0.00068462,110730.0,110720.0,0.49604328]
[1757023480042,0.00068462,110730.0,110720.0,0.49290328]
[1757023480243,0.31833318,110730.0,110720.0,0.49290328]
[1757023480838,0.00068462,110730.0,110720.0,0.49290328]